fUST/lending_fUST_20251028
["ID","MTS","AMOUNT","RATE_DAILY","PERIOD"]
[392544361,1761636643972,-300.0,0.00018348,2]
[392544362,1761636643981,-600.0,0.00018348,2]
[392544363,1761636643990,-235.05758478,0.00018348,2]
[392544364,1761636643999,-1000.0,0.00018399,2]
[392544365,1761636644008,-1000.0,0.00018399,2]
[392544366,1761636644017,-446.84561193,0.00018399,2]
[392544375,1761637238825,295.82614086,0.00017506,2]
[392544376,1761637429619,-1219.118,0.00017887,2]
[392544377,1761637442571,-300.01106858,0.00017898,2]
[392544378,1761637447429,-76.69332525,0.00017898,2]
[392544379,1761637501754,10000.0,0.00030136,120]
[392544381,1761637592940,200.553468,0.00030136,120]
[392544394,1761637831967,-295.82614086,0.00017988,2]
[392544396,1761637831976,-200.51195031,0.00017994,2]
[392544406,1761637832072,-177.7502972,0.00017994,2]
[392544408,1761637832082,-501.4955958,0.00018,2]
[392544410,1761637832091,-1361.7955698,0.00018068,2]
[392544412,1761637832100,-2035.14234491,0.0001812,2]
[392544414,1761637832109,-300.0,0.00018396,2]
[392544416,1761637832118,-1200.0,0.00018396,2]
[392544418,1761637832128,-1200.0,0.00018397,2]
[392544420,1761637832137,-300.0,0.00018397,2]
[392544422,1761637832147,-300.0,0.00018397,2]
[392544424,1761637832157,-300.0,0.00018397,2]
[392544426,1761637832166,-667.28,0.00018398,2]
[392544428,1761637832176,-163.96774,0.0001863,2]
[392544430,1761637832185,-1219.118,0.00018659,2]
[392544432,1761637832195,-300.0,0.00018766,2]
[392544434,1761637832205,-300.0,0.00018766,2]
[392544438,1761637832215,-300.0,0.00018766,2]
[392544440,1761637832225,-300.0,0.00018766,2]
[392544444,1761637832235,-300.0,0.00018766,2]
[392544447,1761637832244,-300.0,0.00018766,2]
[392544449,1761637832253,-300.0,0.00018766,2]
[392544451,1761637832264,-300.0,0.00018766,2]
[392544453,1761637832274,-300.0,0.00018766,2]
[392544455,1761637832285,-300.0,0.00018766,2]
[392544457,1761637832295,-300.0,0.00018766,2]
[392544459,1761637832304,-300.0,0.00018766,2]
[392544460,1761637832314,-300.0,0.00018766,2]
[392544463,1761637832323,-300.0,0.00018766,2]
[392544465,1761637832333,-300.0,0.00018766,2]
[392544467,1761637832343,-600.0,0.00018766,2]
[392544469,1761637832353,-234.08850423,0.00018766,2]
[392544471,1761637832362,-339.99819773,0.00018884,2]
[392544473,1761637832372,-840.81144895,0.00018885,2]
[392544475,1761637832382,-276.62,0.0001898,3]
[392544477,1761637832392,-829.88,0.0001898,3]
[392544479,1761637832402,-500.0,0.00018989,2]
[392544481,1761637832412,-532.89852574,0.00018989,2]
[392544483,1761637832422,-500.0,0.00018989,2]
[392544485,1761637832432,-500.0,0.00018989,2]
[392544487,1761637832441,-298.61746468,0.00018989,2]
[392544489,1761637832451,-55882.98725805,0.0001899,2]
[392544688,1761637840094,-168.98626,0.00018793,2]
[392544689,1761637840105,-500.0,0.00018983,2]
[392544690,1761637840116,-500.0,0.00018983,2]
[392544691,1761637840125,-300.92670464,0.00018983,2]
[392544692,1761637840161,-199.07329536,0.00018983,2]
[392544693,1761637840173,-500.0,0.00018983,2]
[392544694,1761637840185,-500.0,0.00018983,2]
[392544695,1761637840195,-500.0,0.00018983,2]
[392544696,1761637840204,-500.0,0.00018983,2]
[392544697,1761637840214,-500.0,0.00018983,2]
[392544698,1761637840223,-500.0,0.00018983,2]
[392544699,1761637840234,-500.0,0.00018983,2]
[392544700,1761637840244,-500.0,0.00018983,2]
[392544701,1761637840253,-500.0,0.00018983,2]
[392544702,1761637840262,-500.0,0.00018983,2]
[392544703,1761637840273,-491.80606228,0.00018983,2]
[392544704,1761637840282,-500.0,0.00018983,2]
[392544705,1761637840292,-500.0,0.00018983,2]
[392544706,1761637840302,-500.0,0.00018983,2]
[392544707,1761637840311,-500.0,0.00018983,2]
[392544708,1761637840321,-153.0904445,0.00018983,2]
[392544709,1761637840330,-500.0,0.00018983,2]
[392544710,1761637840339,-371.57042969,0.00018983,2]
[392544711,1761637840350,-500.0,0.00018983,2]
[392544712,1761637840359,-500.0,0.00018983,2]
[392544713,1761637840369,-500.0,0.00018983,2]
[392544714,1761637840378,-500.0,0.00018983,2]
[392544715,1761637840388,-500.0,0.00018983,2]
[392544716,1761637840397,-500.0,0.00018983,2]
[392544717,1761637840407,-500.0,0.00018983,2]
[392544718,1761637840417,-500.0,0.00018983,2]
[392544719,1761637840426,-500.0,0.00018983,2]
[392544720,1761637840436,-500.0,0.00018983,2]
[392544721,1761637840446,-500.0,0.00018983,2]
[392544722,1761637840456,-500.0,0.00018983,2]
[392544723,1761637840466,-462.35079607,0.00018983,2]
[392544724,1761637840475,-500.0,0.00018983,2]
[392544725,1761637840485,-500.0,0.00018983,2]
[392544726,1761637840495,-500.0,0.00018983,2]
[392544727,1761637840504,-175.75873447,0.00018983,2]
[392544728,1761637840515,-500.0,0.00018983,2]
[392544729,1761637840525,-500.0,0.00018983,2]
[392544730,1761637840535,-600.09701569,0.00018983,2]
[392544731,1761637840545,-506.53009836,0.00018983,2]
[392544732,1761637840554,-500.0,0.00018983,2]
[392544733,1761637840564,-500.0,0.00018983,2]
[392544734,1761637840574,-500.0,0.00018983,2]
[392544735,1761637840583,-500.0,0.00018983,2]
[392544736,1761637840593,-500.0,0.00018983,2]
[392544737,1761637840603,-500.0,0.00018983,2]
[392544738,1761637840612,-500.0,0.00018983,2]
[392544739,1761637840621,-384.51400559,0.00018983,2]
[392544773,1761637846040,-168.98626,0.00018793,2]
[392544774,1761637846051,-115.48599441,0.00018983,2]
[392544775,1761637846060,-500.0,0.00018983,2]
[392544776,1761637846070,-500.0,0.00018983,2]
[392544777,1761637846079,-500.0,0.00018983,2]
[392544778,1761637846091,-500.0,0.00018983,2]
[392544779,1761637846100,-500.0,0.00018983,2]
[392544780,1761637846110,-500.0,0.00018983,2]
[392544781,1761637846119,-500.0,0.00018983,2]
[392544782,1761637846128,-500.0,0.00018983,2]
[392544783,1761637846137,-500.0,0.00018983,2]
[392544784,1761637846147,-500.0,0.00018983,2]
[392544785,1761637846156,-500.0,0.00018983,2]
[392544786,1761637846165,-500.0,0.00018983,2]
[392544787,1761637846174,-500.0,0.00018983,2]
[392544788,1761637846183,-500.0,0.00018983,2]
[392544789,1761637846192,-500.0,0.00018983,2]
[392544790,1761637846210,-500.0,0.00018983,2]
[392544791,1761637846221,-500.0,0.00018983,2]
[392544792,1761637846231,-500.0,0.00018983,2]
[392544793,1761637846241,-451.69432651,0.00018983,2]
[392544794,1761637846261,-48.30567349,0.00018983,2]
[392544795,1761637846271,-500.0,0.00018983,2]
[392544796,1761637846280,-292.58632651,0.00018983,2]
[392544798,1761638093797,-250.0,0.00017786,2]
[392544799,1761638163199,-166.769403,0.00017985,2]
[392544801,1761638414220,-1768.3620945,0.00017946,2]
[392544803,1761638540415,571.965008,0.00013699,2]
[392544846,1761639032553,-168.98626,0.00018439,2]
[392544847,1761639032564,-160.0,0.0001861,2]
[392544848,1761639032576,-381.64542532,0.00018654,2]
[392544849,1761639032586,-81.88849928,0.00018686,2]
[392544850,1761639032607,-1953.25384563,0.00018686,2]
[392544851,1761639032670,-157.14521272,0.00018761,2]
[392544852,1761639032680,-672.64915916,0.00018776,2]
[392544853,1761639032690,-672.64915913,0.0001878,2]
[392544854,1761639032700,-672.64915913,0.00018783,2]
[392544855,1761639032709,-1245.06835416,0.00018862,2]
[392544856,1761639032718,-151.30724062,0.0001887,2]
[392544857,1761639032728,-300.0,0.0001887,2]
[392544858,1761639032737,-1200.0,0.0001887,2]
[392544859,1761639032747,-300.0,0.0001887,2]
[392544860,1761639032756,-3753.07049097,0.00018871,2]
[392544861,1761639032766,-553.24,0.00018871,3]
[392544863,1761639032776,-232.80192629,0.00018871,2]
[392544865,1761639032785,-1200.0,0.00018876,2]
[392544867,1761639032794,-538.17101291,0.00018876,2]
[392544868,1761639032803,-225.6286586,0.0001888,2]
[392544870,1761639032812,-500.0,0.0001888,2]
[392544872,1761639032822,-500.0,0.0001888,2]
[392544874,1761639032832,-316.57697592,0.0001888,2]
[392544876,1761639032841,-456.36874297,0.0001888,2]
[392544878,1761639032850,-127080.70466488,0.00018881,2]
[392544880,1761639032861,-13281.9187289,0.00018881,2]
[392544883,1761639032873,-14799.173268,0.00018881,2]
[392544885,1761639032884,-53879.6515447,0.00018881,2]
[392544887,1761639032895,-624.99657219,0.00018881,2]
[392544889,1761639038008,-672.64915913,0.00018787,2]
[392544891,1761639038018,-672.64915913,0.0001879,2]
[392544893,1761639038027,-288.943441,0.00018875,2]
[392544907,1761639040282,-333.70966073,0.00018875,2]
[392544909,1761639040293,-500.0,0.00018875,2]
[392544911,1761639040306,-217.95475558,0.00018875,2]
[392544913,1761639040315,-500.0,0.00018875,2]
[392544915,1761639040325,-510.36315994,0.00018875,2]
[392544917,1761639040334,-153.56042998,0.00018875,2]
[392544919,1761639040345,-258.22,0.00018875,2]
[392544920,1761639040357,-88.21957002,0.00018875,2]
[392544921,1761639040367,-214.16143,0.00018875,2]
[392544942,1761639043171,-285.83857,0.00018875,2]
[392544944,1761639043180,-500.0,0.00018875,2]
[392544946,1761639043189,-500.0,0.00018875,2]
[392544948,1761639043199,-500.0,0.00018875,2]
[392544950,1761639043208,-500.0,0.00018875,2]
[392544952,1761639043217,-500.0,0.00018875,2]
[392544954,1761639043226,-181.11094124,0.00018875,2]
[392545163,1761639046448,-265.79450178,0.00018875,2]
[392546117,1761639755772,395.49517207,0.000179,2]
[392546118,1761639759236,799.0,0.00017989,2]
[392546119,1761639782534,300.0,0.00017989,2]
[392546120,1761639842708,300.0,0.00017989,2]
[392546121,1761639859773,-3836.11718612,0.0001799,2]
[392546122,1761639859857,-10000.01,0.0001799,2]
[392546123,1761639862709,-10000.01,0.0001799,2]
[392546124,1761639863201,-3126.26616488,0.0001799,2]
[392546125,1761639863230,-500.0,0.00018,2]
[392546126,1761639863261,-374.01251681,0.0001804,2]
[392546127,1761639863291,-170.07789,0.0001808,2]
[392546128,1761639863320,-231.67160247,0.0001812,2]
[392546129,1761639863543,-1195.95365168,0.00018366,2]
[392546136,1761640034497,168.98626,8.89e-05,2]
[392546365,1761640083238,-9831.02374,0.00018,2]
[392546366,1761640089154,-300.0,0.00017999,2]
[392546367,1761640089193,-9400.01,0.00018,2]
[392546368,1761640103330,395.41695777,0.0001789,2]
[392546369,1761640113937,556.58822022,0.00015,2]
[392546371,1761640123669,261.42529488,0.00015,2]
[392546372,1761640126438,199.37412975,0.0001789,2]
[392546420,1761640232158,-300.0,0.00017998,2]
[392546422,1761640232168,-1200.0,0.00017998,2]
[392546424,1761640232177,-500.0,0.00017999,2]
[392546426,1761640232186,-500.0,0.00017999,2]
[392546428,1761640232195,-152.02628139,0.00017999,2]
[392546431,1761640232213,-347.97371861,0.00017999,2]
[392546433,1761640232222,-500.0,0.00017999,2]
[392546435,1761640232232,-500.0,0.00017999,2]
[392546437,1761640232242,-500.0,0.00017999,2]
[392546439,1761640232251,-500.0,0.00017999,2]
[392546441,1761640232260,-500.0,0.00017999,2]
[392546442,1761640232268,-500.0,0.00017999,2]
[392546443,1761640232277,-500.0,0.00017999,2]
[392546444,1761640232286,-500.0,0.00017999,2]
[392546445,1761640232295,-500.0,0.00017999,2]
[392546446,1761640232304,-500.0,0.00017999,2]
[392546447,1761640232313,-500.0,0.00017999,2]
[392546448,1761640232322,-288.58699207,0.00017999,2]
[392546449,1761640232335,-211.41300793,0.00017999,2]
[392546450,1761640232344,-500.0,0.00017999,2]
[392546451,1761640232353,-85.38704707,0.00017999,2]
[392546467,1761640238133,-500.0,0.00017999,2]
[392546468,1761640238144,-319.45812008,0.00017999,2]
[392546469,1761640238154,-297.12635388,0.00017999,2]
[392546470,1761640238166,-124.47752926,0.00017999,2]
[392546471,1761640238176,-707.41321623,0.00018,2]
[392546564,1761640246317,-30352.29899072,0.00018,2]
[392546565,1761640246447,-60230.64920055,0.00018,2]
[392546566,1761640246457,-230.89574931,0.0001813,2]
[392546567,1761640246467,-1202.94131531,0.0001877,2]
[392546568,1761640246477,-151.0,0.0001877,2]
[392546569,1761640246486,-151.0,0.0001877,2]
[392546570,1761640246496,-500.0,0.0001877,2]
[392546571,1761640246506,-1000.0,0.0001877,2]
[392546572,1761640246516,-151.0,0.0001877,2]
[392546573,1761640246525,-500.0,0.0001877,2]
[392546574,1761640246535,-1000.0,0.0001877,2]
[392546575,1761640246545,-151.0,0.0001877,2]
[392546576,1761640246555,-500.0,0.0001877,2]
[392546577,1761640246564,-153.81699132,0.0001877,2]
[392546578,1761640246575,-1000.0,0.0001877,2]
[392546579,1761640246584,-500.0,0.0001877,2]
[392546580,1761640246593,-213.99195881,0.0001877,2]
[392546581,1761640246603,-1000.0,0.0001877,2]
[392546582,1761640246612,-500.0,0.0001877,2]
[392546583,1761640246621,-1000.0,0.0001877,2]
[392546584,1761640246631,-500.0,0.0001877,2]
[392546585,1761640246640,-250.0,0.0001877,2]
[392546586,1761640246650,-500.0,0.0001877,2]
[392546587,1761640246660,-333.84196909,0.0001877,2]
[392546588,1761640246669,-250.0,0.0001877,2]
[392546589,1761640246679,-151.0,0.0001877,2]
[392546590,1761640246689,-250.0,0.0001877,2]
[392546591,1761640246698,-151.0,0.0001877,2]
[392546592,1761640246707,-250.0,0.0001877,2]
[392546593,1761640246717,-151.0,0.0001877,2]
[392546594,1761640246727,-250.0,0.0001877,2]
[392546595,1761640246736,-151.0,0.0001877,2]
[392546596,1761640246746,-250.0,0.0001877,2]
[392546597,1761640246756,-151.0,0.0001877,2]
[392546598,1761640246765,-250.0,0.0001877,2]
[392546599,1761640246774,-151.0,0.0001877,2]
[392546600,1761640246784,-250.0,0.0001877,2]
[392546601,1761640246794,-151.0,0.0001877,2]
[392546602,1761640246804,-250.0,0.0001877,2]
[392546603,1761640246813,-151.0,0.0001877,2]
[392546604,1761640246822,-186.92850089,0.0001877,2]
[392546605,1761640246831,-151.0,0.0001877,2]
[392546606,1761640246840,-151.0,0.0001877,2]
[392546607,1761640246850,-151.0,0.0001877,2]
[392546608,1761640246859,-151.0,0.0001877,2]
[392546609,1761640246869,-151.0,0.0001877,2]
[392546610,1761640246878,-151.0,0.0001877,2]
[392546611,1761640246887,-151.0,0.0001877,2]
[392546612,1761640246897,-151.0,0.0001877,2]
[392546613,1761640246906,-153.86181267,0.0001877,2]
[392546614,1761640246917,-366.53226647,0.00018773,2]
[392546615,1761640246927,-370000.0,0.00018781,2]
[392546616,1761640246937,-16133.2047606,0.00018869,2]
[392546617,1761640246947,-150.7099686,0.00018869,2]
[392546618,1761640246957,-639.48,0.00018875,2]
[392546619,1761640246968,-15605.6565054,0.00018879,2]
[392546620,1761640246978,-1000.0,0.0001888,2]
[392546621,1761640246987,-1000.0,0.0001888,2]
[392546622,1761640246996,-1000.0,0.0001888,2]
[392546623,1761640247006,-1000.0,0.0001888,2]
[392546624,1761640247015,-1000.0,0.0001888,2]
[392546625,1761640247024,-1000.0,0.0001888,2]
[392546626,1761640247033,-1000.0,0.0001888,2]
[392546627,1761640247042,-1000.0,0.0001888,2]
[392546628,1761640247052,-1000.0,0.0001888,2]
[392546629,1761640247061,-298.73438807,0.0001888,2]
[392546630,1761640247072,-639.48,0.0001888,2]
[392546631,1761640247081,-639.48,0.0001888,2]
[392546632,1761640247091,-639.48,0.0001888,2]
[392546633,1761640247100,-639.48,0.0001888,2]
[392546634,1761640247109,-639.48,0.0001888,2]
[392546635,1761640247119,-639.48,0.0001888,2]
[392546636,1761640247128,-639.48,0.0001888,2]
[392546637,1761640247137,-639.48,0.0001888,2]
[392546638,1761640247146,-639.48,0.0001888,2]
[392546639,1761640247157,-639.48,0.0001888,2]
[392546640,1761640247166,-639.48,0.0001888,2]
[392546641,1761640247176,-639.48,0.0001888,2]
[392546642,1761640247185,-639.48,0.0001888,2]
[392546643,1761640247194,-639.48,0.0001888,2]
[392546644,1761640247204,-639.48,0.0001888,2]
[392546645,1761640247214,-639.48,0.0001888,2]
[392546646,1761640247223,-639.48,0.0001888,2]
[392546647,1761640247233,-639.48,0.0001888,2]
[392546648,1761640247243,-639.48,0.0001888,2]
[392546649,1761640247252,-639.48,0.0001888,2]
[392546650,1761640247262,-639.48,0.0001888,2]
[392546651,1761640247272,-639.48,0.0001888,2]
[392546652,1761640247282,-639.51,0.0001888,2]
[392546653,1761640247293,-478.38,0.0001889,2]
[392546654,1761640247303,-3000.0,0.00019,2]
[392546655,1761640247313,-34661.49174531,0.00019,2]
[392546656,1761640247322,-421.89241413,0.00019028,2]
[392546657,1761640247332,-1217.88269742,0.0001911,2]
[392546658,1761640247341,-330.11614828,0.00019151,2]
[392546659,1761640247351,-151.0,0.00019178,2]
[392546660,1761640247360,-151.0,0.00019178,2]
[392546661,1761640247370,-151.0,0.00019178,2]
[392546662,1761640247380,-248.505054,0.00019178,2]
[392546663,1761640247390,-300.0,0.00019362,2]
[392546664,1761640247400,-300.0,0.00019362,2]
[392546665,1761640247410,-300.0,0.00019362,2]
[392546666,1761640247420,-300.0,0.00019362,2]
[392546667,1761640247430,-300.0,0.00019362,2]
[392546668,1761640247439,-300.0,0.00019362,2]
[392546669,1761640247448,-300.0,0.00019362,2]
[392546670,1761640247457,-300.0,0.00019362,2]
[392546671,1761640247467,-300.0,0.00019362,2]
[392546672,1761640247476,-300.0,0.00019362,2]
[392546673,1761640247486,-300.0,0.00019362,2]
[392546674,1761640247495,-300.0,0.00019362,2]
[392546675,1761640247505,-300.0,0.00019362,2]
[392546676,1761640247514,-300.0,0.00019362,2]
[392546677,1761640247524,-300.0,0.00019362,2]
[392546678,1761640247534,-600.0,0.00019362,2]
[392546679,1761640247545,-151.0,0.00019362,7]
[392546680,1761640247554,-444.31918214,0.00019382,2]
[392546681,1761640247565,-1687.56965651,0.00019473,2]
[392546682,1761640247575,-40759.732875,0.000195,2]
[392546683,1761640247584,-223.105227,0.000195,7]
[392546684,1761640247594,-288.85869143,0.00019637,2]
[392546685,1761640247604,-420.0,0.00019638,2]
[392546686,1761640247613,-1200.0,0.00019734,2]
[392546687,1761640247624,-2167.0,0.00019823,2]
[392546688,1761640247635,-3793.23469543,0.00019917,2]
[392546689,1761640247645,-8069.0,0.00019952,2]
[392546690,1761640247654,-571.965008,0.00020187,2]
[392546691,1761640247664,-190.0,0.00020192,3]
[392546692,1761640247674,-686.65968972,0.00020634,2]
[392546693,1761640247683,-478.23956949,0.0002067,2]
[392546694,1761640247693,-432.50807444,0.00020773,2]
[392546695,1761640247703,-31039.52064134,0.0002079,2]
[392546696,1761640247712,-720.0,0.00021298,20]
[392546697,1761640247722,-3599.8045619,0.00021307,2]
[392546698,1761640247734,-587.0,0.00021427,2]
[392546699,1761640247743,-803.2249684,0.0002185,2]
[392546700,1761640247753,-949.92224067,0.00021887,2]
[392546701,1761640247762,-201.96,0.00021916,2]
[392546702,1761640247772,-555.53253049,0.00021917,2]
[392546703,1761640247782,-526.47,0.00021917,2]
[392546704,1761640247791,-500.0,0.00021917,2]
[392546705,1761640247800,-500.0,0.00021917,2]
[392546706,1761640247811,-500.0,0.00021917,2]
[392546707,1761640247821,-500.0,0.00021917,2]
[392546708,1761640247830,-500.0,0.00021917,2]
[392546709,1761640247840,-500.0,0.00021917,2]
[392546710,1761640247850,-500.0,0.00021917,2]
[392546711,1761640247860,-500.0,0.00021917,2]
[392546712,1761640247870,-700.14,0.00021917,2]
[392546713,1761640247880,-500.0,0.00021917,2]
[392546714,1761640247889,-500.0,0.00021917,2]
[392546715,1761640247898,-500.0,0.00021917,2]
[392546716,1761640248174,-500.0,0.00021917,2]
[392546717,1761640248184,-500.0,0.00021917,2]
[392546718,1761640248194,-500.0,0.00021917,2]
[392546719,1761640248204,-650.49,0.00021917,2]
[392546720,1761640248213,-500.0,0.00021917,2]
[392546721,1761640248223,-821.3,0.00021917,2]
[392546722,1761640248234,-500.0,0.00021917,2]
[392546723,1761640248244,-500.0,0.00021917,2]
[392546724,1761640248254,-883.33,0.00021917,2]
[392546725,1761640248263,-559.22,0.00021917,2]
[392546726,1761640248273,-500.0,0.00021917,2]
[392546727,1761640248283,-500.0,0.00021917,2]
[392546728,1761640248292,-795.1,0.00021917,2]
[392546729,1761640248302,-500.0,0.00021917,2]
[392546730,1761640248312,-500.0,0.00021917,2]
[392546731,1761640248322,-500.0,0.00021917,2]
[392546732,1761640248332,-500.0,0.00021917,2]
[392546733,1761640248342,-500.0,0.00021917,2]
[392546734,1761640248351,-500.0,0.00021917,2]
[392546735,1761640248361,-500.0,0.00021917,2]
[392546736,1761640248370,-500.0,0.00021917,2]
[392546737,1761640248379,-500.0,0.00021917,2]
[392546738,1761640248389,-500.0,0.00021917,2]
[392546739,1761640248398,-500.0,0.00021917,2]
[392546740,1761640248408,-238.75194573,0.00021917,2]
[392546741,1761640248418,-500.0,0.00021917,2]
[392546742,1761640248427,-500.0,0.00021917,2]
[392546743,1761640248436,-500.0,0.00021917,2]
[392546744,1761640248446,-601.53,0.00021917,2]
[392546745,1761640248456,-500.0,0.00021917,2]
[392546746,1761640248465,-500.0,0.00021917,2]
[392546747,1761640248475,-539.11,0.00021917,2]
[392546748,1761640248485,-500.0,0.00021917,2]
[392546749,1761640248494,-568.11549797,0.00021917,2]
[392546750,1761640248503,-500.0,0.00021917,2]
[392546751,1761640248513,-500.0,0.00021917,2]
[392546752,1761640248523,-500.0,0.00021917,2]
[392546753,1761640248532,-500.0,0.00021917,2]
[392546754,1761640248544,-500.0,0.00021917,2]
[392546755,1761640248554,-1102.48,0.00021917,2]
[392546756,1761640248564,-533.85,0.00021917,2]
[392546757,1761640248574,-500.0,0.00021917,2]
[392546758,1761640248586,-500.0,0.00021917,2]
[392546759,1761640248596,-500.0,0.00021917,2]
[392546760,1761640248609,-666.47,0.00021917,2]
[392546761,1761640248619,-500.0,0.00021917,2]
[392546762,1761640248629,-500.0,0.00021917,2]
[392546763,1761640248639,-500.0,0.00021917,2]
[392546764,1761640248651,-500.0,0.00021917,2]
[392546765,1761640248660,-500.0,0.00021917,2]
[392546766,1761640248670,-500.0,0.00021917,2]
[392546767,1761640248680,-500.0,0.00021917,2]
[392546768,1761640248690,-500.0,0.00021917,2]
[392546769,1761640248700,-500.0,0.00021917,2]
[392546770,1761640248710,-500.0,0.00021917,2]
[392546771,1761640248720,-500.0,0.00021917,2]
[392546772,1761640248730,-500.0,0.00021917,2]
[392546773,1761640248739,-500.0,0.00021917,2]
[392546774,1761640248749,-501.56439204,0.00021917,2]
[392546775,1761640248759,-500.0,0.00021917,2]
[392546776,1761640248769,-500.0,0.00021917,2]
[392546777,1761640248779,-500.0,0.00021917,2]
[392546778,1761640248789,-500.0,0.00021917,2]
[392546779,1761640248799,-500.0,0.00021917,2]
[392546780,1761640248809,-500.0,0.00021917,2]
[392546781,1761640248819,-500.0,0.00021917,2]
[392546782,1761640248830,-472.5946205,0.00021917,2]
[392546783,1761640248840,-500.0,0.00021917,2]
[392546784,1761640248850,-500.0,0.00021917,2]
[392546785,1761640248859,-500.0,0.00021917,2]
[392546786,1761640248869,-500.0,0.00021917,2]
[392546787,1761640248879,-5260.13,0.00021917,2]
[392546788,1761640248891,-500.0,0.00021917,2]
[392546789,1761640248901,-533.68,0.00021917,2]
[392546790,1761640248912,-500.0,0.00021917,2]
[392546791,1761640248923,-500.0,0.00021917,2]
[392546792,1761640248933,-500.0,0.00021917,2]
[392546793,1761640248942,-632.82,0.00021917,2]
[392546794,1761640248951,-500.0,0.00021917,2]
[392546795,1761640248965,-500.0,0.00021917,2]
[392546796,1761640248975,-500.0,0.00021917,2]
[392546797,1761640248986,-604.75970427,0.00021917,2]
[392546798,1761640248996,-902.27,0.00021917,2]
[392546799,1761640249006,-1098.98,0.00021917,2]
[392546800,1761640249015,-1099.04,0.00021917,2]
[392546801,1761640249025,-897.28,0.00021917,2]
[392546802,1761640249035,-500.0,0.00021917,2]
[392546803,1761640249044,-500.0,0.00021917,2]
[392546804,1761640249054,-589.45,0.00021917,2]
[392546805,1761640249065,-585.59,0.00021917,2]
[392546806,1761640249075,-529.22,0.00021917,2]
[392546807,1761640249085,-622.46,0.00021917,2]
[392546808,1761640249094,-500.0,0.00021917,2]
[392546809,1761640249104,-500.0,0.00021917,2]
[392546810,1761640249114,-500.0,0.00021917,2]
[392546811,1761640249125,-766.85,0.00021917,2]
[392546812,1761640249135,-628.77451519,0.00021917,2]
[392546813,1761640249144,-500.0,0.00021917,2]
[392546814,1761640249154,-500.0,0.00021917,2]
[392546815,1761640249163,-500.0,0.00021917,2]
[392546816,1761640249174,-695.96,0.00021917,2]
[392546817,1761640249184,-500.0,0.00021917,2]
[392546818,1761640249195,-920.11,0.00021917,2]
[392546819,1761640249205,-635.6,0.00021917,2]
[392546820,1761640249215,-500.0,0.00021917,2]
[392546821,1761640249225,-922.79,0.00021917,2]
[392546822,1761640249235,-484.83770597,0.00021917,2]
[392546823,1761640249247,-500.0,0.00021917,2]
[392546824,1761640249257,-500.0,0.00021917,2]
[392546825,1761640249266,-500.0,0.00021917,2]
[392546826,1761640249277,-1030.92,0.00021917,2]
[392546827,1761640249288,-500.0,0.00021917,2]
[392546828,1761640249298,-500.0,0.00021917,2]
[392546829,1761640249307,-500.0,0.00021917,2]
[392546830,1761640249317,-500.0,0.00021917,2]
[392546831,1761640249326,-500.0,0.00021917,2]
[392546832,1761640249336,-567.15,0.00021917,2]
[392546833,1761640249346,-500.0,0.00021917,2]